bitfinex/quotes_BTCUSD_20250211
["timestamp","ask_amount","ask_price","bid_price","bid_amount"]
[1739314049615,0.00022408,96156.0,96148.0,0.58467147]
[1739314050117,0.00022408,96156.0,96148.0,0.57967147]
[1739314050327,0.00022408,96156.0,96148.0,0.61167147]
[1739314050888,0.00042345,96149.0,96148.0,0.61167147]
[1739314051137,0.00042345,96149.0,96148.0,0.92597147]
[1739314051334,0.00042345,96149.0,96148.0,0.93297147]
[1739314052115,4.5e-07,96149.0,96148.0,1.48787147]
[1739314052728,4.5e-07,96149.0,96148.0,1.46887147]
[1739314052884,4.5e-07,96149.0,96148.0,1.47855147]
[1739314053545,4.5e-07,96149.0,96148.0,1.46655147]
[1739314053723,4.5e-07,96149.0,96148.0,1.48155147]
[1739314054251,0.00013899,96156.0,96155.0,0.407398]
[1739314054555,0.00013899,96156.0,96155.0,0.6124053]
[1739314055653,0.00013899,96156.0,96155.0,0.6344053]
[1739314057113,0.00013899,96156.0,96155.0,0.9557053]
[1739314058746,0.00013899,96156.0,96155.0,0.9337053]
[1739314058967,0.00013899,96156.0,96155.0,0.9487053]
[1739314059168,0.00013899,96156.0,96155.0,0.9557053]
[1739314060892,0.00013899,96156.0,96155.0,0.96579317]
[1739314063177,0.155945,96188.0,96176.0,0.155963]
[1739314063459,0.15639017,96188.0,96177.0,0.13534747]
[1739314063668,0.00563261,96187.0,96177.0,0.13534747]
[1739314064629,0.00563261,96187.0,96177.0,0.13934747]
[1739314064835,0.00044517,96188.0,96177.0,0.29530847]
[1739314065262,0.00563256,96187.0,96177.0,0.29530847]
[1739314065467,0.00563256,96187.0,96178.0,0.07880175]
[1739314065684,0.00563256,96187.0,96179.0,0.10250365]
[1739314068005,0.00563256,96187.0,96179.0,0.10750365]
[1739314071219,0.00563256,96187.0,96180.0,0.155957]
[1739314071488,0.00044517,96188.0,96181.0,0.10250365]
[1739314071690,0.00563254,96186.0,96181.0,0.10250365]
[1739314071810,0.00563261,96187.0,96181.0,0.10250365]
[1739314072013,0.00563257,96185.0,96182.0,0.05502084]
[1739314072208,0.00563259,96186.0,96183.0,0.10250365]
[1739314072413,0.00563256,96184.0,96183.0,0.10250365]
[1739314072657,0.00044517,96188.0,96183.0,0.10250365]
[1739314073066,0.00563261,96187.0,96183.0,0.10250365]
[1739314073268,0.00563261,96187.0,96184.0,0.01736889]
[1739314073469,0.00563261,96187.0,96185.0,0.10250365]
[1739314074543,0.00563261,96187.0,96185.0,0.10750365]
[1739314075804,0.00563261,96187.0,96186.0,0.155947]
[1739314076016,0.00563261,96187.0,96186.0,0.10250365]
[1739314076184,0.00044517,96188.0,96186.0,0.10250365]
[1739314076510,0.00044517,96188.0,96187.0,0.10250365]
[1739314077067,0.00607761,96188.0,96187.0,0.10250365]
[1739314077837,0.01572924,96188.0,96187.0,0.10250365]
[1739314078383,0.01572924,96188.0,96187.0,0.10750365]
[1739314079439,0.01572924,96188.0,96187.0,0.15464361]
[1739314080098,0.01572924,96188.0,96187.0,0.10750365]
[1739314080885,0.01563726,96188.0,96187.0,0.10750365]
[1739314081108,0.00598563,96188.0,96187.0,0.10750365]
[1739314086050,0.0156453,96188.0,96187.0,0.10750365]
[1739314086943,0.0156453,96188.0,96187.0,0.10761005]
[1739314087301,0.01586875,96188.0,96187.0,0.10761005]
[1739314087532,0.01586875,96188.0,96187.0,0.11845702]
[1739314087931,0.01586875,96188.0,96187.0,0.10761005]
[1739314089404,0.01023631,96188.0,96187.0,0.10761005]
[1739314089619,0.01494821,96188.0,96187.0,0.10761005]
[1739314090653,0.01023631,96188.0,96187.0,0.26355605]
[1739314092767,0.01023631,96188.0,96187.0,0.33814929]
[1739314093334,0.01023631,96188.0,96187.0,0.26355605]
[1739314109529,0.01023631,96188.0,96187.0,0.25855605]
[1739314109678,0.01023631,96188.0,96187.0,0.26555605]
[1739314112373,0.01023631,96188.0,96187.0,0.34355605]
[1739314112626,0.01023631,96188.0,96187.0,0.33655605]
[1739314112819,0.01023631,96188.0,96187.0,0.34355605]
[1739314113244,0.01023631,96188.0,96187.0,0.33655605]
[1739314113445,0.01023631,96188.0,96187.0,0.34455605]
[1739314113968,0.01023631,96188.0,96187.0,0.34355605]
[1739314114243,0.01023631,96188.0,96187.0,0.34455605]
[1739314120313,0.02958145,96188.0,96187.0,0.34455605]
[1739314121516,0.02958145,96188.0,96187.0,0.61544006]
[1739314122367,0.01023631,96188.0,96187.0,0.61544006]
[1739314123508,0.00057664,96188.0,96187.0,0.61544006]
[1739314123875,0.01024523,96188.0,96187.0,0.61544006]
[1739314126835,0.00057664,96188.0,96187.0,0.61544006]
[1739314131127,0.00057664,96188.0,96187.0,0.54005605]
[1739314132939,0.00057664,96188.0,96187.0,1.09795605]
[1739314135041,0.00057664,96188.0,96187.0,1.09695605]
[1739314135417,0.00057664,96188.0,96187.0,1.10495605]
[1739314135834,0.00057664,96188.0,96187.0,1.1223969]
[1739314136185,0.00057664,96188.0,96187.0,1.2134597]
[1739314136474,0.00057664,96188.0,96187.0,1.2064597]
[1739314136676,0.00057664,96188.0,96187.0,1.1924597]
[1739314136876,0.00057664,96188.0,96187.0,1.1994597]
[1739314138226,0.00057664,96188.0,96187.0,1.2144597]
[1739314139232,6.4e-07,96188.0,96187.0,1.24688546]
[1739314139889,9e-08,96189.0,96188.0,0.338944]
[1739314140076,0.00013355,96189.0,96188.0,1.23925706]
[1739314141032,5.5e-07,96189.0,96188.0,1.23925706]
[1739314141646,5.5e-07,96189.0,96188.0,1.25425706]
[1739314142072,5.5e-07,96189.0,96188.0,1.23925706]
[1739314142543,5.5e-07,96189.0,96188.0,1.26125706]
[1739314142709,5.5e-07,96189.0,96188.0,1.25425706]
[1739314143133,5.5e-07,96189.0,96188.0,1.26125706]
[1739314143536,0.00022387,96206.0,96204.0,0.449218]
[1739314143738,0.00022387,96206.0,96204.0,1.15233275]
[1739314144893,0.00022387,96206.0,96204.0,1.16733275]
[1739314145687,0.00022387,96206.0,96204.0,1.18433275]
[1739314147356,7.4e-07,96206.0,96205.0,0.459217]
[1739314147538,7.4e-07,96206.0,96205.0,0.56172065]
[1739314147741,7.4e-07,96206.0,96205.0,0.6642243]
[1739314148255,0.00022387,96224.0,96209.0,0.01]
[1739314148417,0.00035723,96224.0,96223.0,0.55849065]
[1739314148680,0.00035723,96224.0,96223.0,0.56617065]
[1739314148847,0.00035723,96224.0,96223.0,0.6686743]
[1739314149979,0.00035723,96224.0,96223.0,0.6756743]
[1739314150277,0.00035723,96224.0,96223.0,0.66833423]
[1739314150577,0.00035723,96224.0,96223.0,0.67533423]
[1739314150805,0.00035723,96224.0,96223.0,0.69623477]
[1739314150979,0.00035723,96224.0,96223.0,0.71123477]
[1739314151401,0.01932288,96261.0,96257.0,0.155832]
[1739314151601,0.01932288,96261.0,96258.0,0.10250365]
[1739314151602,0.01945622,96261.0,96258.0,0.10250365]
[1739314152159,0.01945622,96261.0,96258.0,0.25833465]
[1739314152364,0.00013334,96261.0,96258.0,0.25833465]
[1739314152592,0.00013334,96261.0,96258.0,0.10250365]
[1739314152790,0.00013334,96261.0,96259.0,0.04701137]
[1739314152991,0.00013334,96261.0,96260.0,0.10250365]
[1739314153817,0.15595934,96261.0,96260.0,0.10250365]
[1739314154155,0.00013334,96261.0,96260.0,0.10650365]
[1739314154613,0.0077961,96264.0,96260.0,0.10650365]
[1739314154817,0.155824,96262.0,96260.0,0.10650365]
[1739314155024,0.155823,96263.0,96260.0,0.10650365]
[1739314155379,0.155824,96262.0,96260.0,0.10650365]
[1739314155577,0.188726,96261.0,96260.0,0.004]
[1739314155842,0.0329,96260.0,96237.0,0.23872391]
[1739314156018,0.0329,96245.0,96238.0,0.10250365]
[1739314156425,0.155859,96241.0,96238.0,0.10250365]
[1739314156783,0.155856,96243.0,96238.0,0.10250365]
[1739314156988,0.207807,96244.0,96238.0,0.10250365]
[1739314156989,0.0329,96245.0,96238.0,0.10250365]
[1739314157226,0.188753,96245.0,96238.0,0.10250365]
[1739314157430,0.188753,96245.0,96238.0,0.10750365]
[1739314157667,0.188753,96245.0,96238.0,0.10250365]
[1739314159034,0.190753,96245.0,96238.0,0.10850365]
[1739314159346,0.0349,96245.0,96238.0,0.10250365]
[1739314159547,0.0349,96245.0,96238.0,0.10750365]
[1739314160177,0.190752,96245.0,96238.0,0.10750365]
[1739314160469,0.155855,96244.0,96238.0,0.10750365]
[1739314160677,0.0349,96245.0,96238.0,0.10750365]
[1739314161687,0.0329,96245.0,96238.0,0.10750365]
[1739314161883,0.188753,96245.0,96238.0,0.10750365]
[1739314162091,0.002,96244.0,96238.0,0.10250365]
[1739314162285,0.207809,96242.0,96238.0,0.10250365]
[1739314162486,0.0329,96245.0,96238.0,0.10250365]
[1739314162487,0.155861,96239.0,96238.0,0.10250365]
[1739314162663,0.155861,96239.0,96238.0,0.10750365]
[1739314163122,0.155861,96239.0,96238.0,0.005]
[1739314163506,0.207812,96241.0,96237.0,0.00013334]
[1739314163507,0.155863,96238.0,96237.0,0.00013334]
[1739314163930,0.188763,96238.0,96237.0,0.00013334]
[1739314164702,0.155895,96218.0,96217.0,0.08285991]
[1739314165160,0.155895,96218.0,96189.0,0.08285991]
[1739314165161,0.155912,96208.0,96189.0,0.08285991]
[1739314165323,0.155912,96208.0,96207.0,0.08299327]
[1739314165518,0.155912,96208.0,96207.0,0.00013336]
[1739314165929,0.188712,96208.0,96207.0,0.00013336]
[1739314166709,0.199712,96208.0,96207.0,0.00213336]
[1739314167758,0.2093532,96208.0,96207.0,0.00213336]
[1739314167974,0.2093532,96208.0,96207.0,0.00235701]
[1739314168382,0.22564318,96208.0,96207.0,0.00235701]
[1739314168777,0.23592973,96208.0,96207.0,0.00235701]
[1739314168954,0.33843338,96208.0,96207.0,0.00235701]
[1739314169172,0.34843338,96208.0,96207.0,0.00235701]
[1739314169987,0.34843338,96208.0,96207.0,0.00135701]
[1739314170186,0.33743338,96208.0,96207.0,0.00035701]
[1739314170793,0.33743338,96208.0,96187.0,0.0001064]
[1739314170794,0.155944,96188.0,96187.0,0.0001064]
[1739314171138,0.15598838,96188.0,96187.0,0.0001064]
[1739314171254,0.40849203,96188.0,96187.0,0.0001064]
[1739314171610,0.45778593,96188.0,96187.0,0.0001064]
[1739314172140,0.49018593,96188.0,96187.0,0.0001064]
[1739314172632,0.49982713,96188.0,96187.0,0.0001064]
[1739314172947,0.49242713,96188.0,96148.0,0.0001064]
[1739314173076,0.338957,96180.0,96148.0,0.0001064]
[1739314173284,0.44146065,96180.0,96148.0,0.0001064]
[1739314173520,0.4764974,96180.0,96148.0,0.0001064]
[1739314174254,0.53358665,96180.0,96148.0,0.0001064]
[1739314174739,0.155994,96157.0,96148.0,0.0001064]
[1739314175286,0.156007,96149.0,96148.0,0.0001064]
[1739314175904,0.156007,96149.0,96148.0,0.00055157]
[1739314177833,0.157007,96149.0,96148.0,0.00355157]
[1739314186963,0.16654932,96149.0,96148.0,0.00355157]
[1739314190738,0.157007,96149.0,96148.0,0.00355157]
[1739314191303,0.001,96149.0,96148.0,0.00355157]
[1739314192325,0.001,96149.0,96148.0,0.49346422]
[1739314193117,0.001,96149.0,96148.0,0.53886422]
[1739314193319,0.002,96149.0,96148.0,0.53886422]
[1739314193538,0.001,96149.0,96148.0,0.63135404]
[1739314193944,0.155965,96175.0,96164.0,0.0814]
[1739314194669,0.155967,96174.0,96164.0,0.0814]
[1739314195087,0.207949,96177.0,96164.0,0.18590365]
[1739314195293,0.207949,96177.0,96165.0,0.155981]
[1739314195294,0.155962,96177.0,96165.0,0.155981]
[1739314195491,0.0001066,96179.0,96178.0,0.23736]
[1739314195695,0.0001066,96179.0,96178.0,0.33986365]
[1739314196766,0.0001066,96179.0,96178.0,0.34030882]
[1739314197434,0.01172709,96179.0,96178.0,0.34630882]
[1739314198254,0.01172709,96179.0,96178.0,0.39170882]
[1739314198614,0.01172709,96179.0,96178.0,0.54170882]
[1739314199649,0.0011066,96179.0,96178.0,0.54170882]
[1739314199854,0.0001066,96179.0,96178.0,0.54070882]
[1739314200082,0.0001066,96179.0,96178.0,0.54770882]
[1739314207047,0.0001066,96179.0,96178.0,0.39770882]
[1739314207250,0.0001066,96179.0,96178.0,0.24174882]
[1739314207448,0.0001066,96179.0,96178.0,0.19634882]
[1739314208054,0.1560656,96179.0,96178.0,0.01244517]
[1739314208298,0.0001066,96179.0,96178.0,0.01244517]
[1739314210462,0.1560656,96179.0,96178.0,0.01244517]
[1739314211433,0.16616759,96179.0,96178.0,0.00544517]
[1739314211654,0.16616759,96179.0,96178.0,0.00844517]
[1739314211851,0.17576194,96179.0,96178.0,0.00344517]
[1739314212220,0.18076194,96179.0,96178.0,0.00444517]
[1739314212557,0.17576194,96179.0,96178.0,0.00344517]
[1739314212959,0.18076194,96179.0,96178.0,0.00144517]
[1739314213161,0.17116759,96179.0,96178.0,0.00444517]
[1739314216454,0.17116759,96179.0,96178.0,0.00466903]
[1739314217255,0.155959,96179.0,96178.0,0.00466903]
[1739314222559,0.17701347,96179.0,96178.0,0.00466903]
[1739314227432,0.19330825,96179.0,96178.0,0.00466903]
[1739314231884,0.2958119,96179.0,96178.0,0.00466903]
[1739314233112,0.2958119,96179.0,96178.0,0.00166903]
[1739314233314,0.2978119,96179.0,96178.0,0.00166903]
[1739314233608,0.2978119,96179.0,96178.0,0.00066903]
[1739314233960,0.3158119,96179.0,96178.0,0.00166903]
[1739314234493,0.3008119,96179.0,96178.0,0.00066903]
[1739314234664,0.3158119,96179.0,96178.0,0.00166903]
[1739314238528,0.32545188,96179.0,96178.0,0.00166903]
[1739314239708,0.47545188,96179.0,96178.0,0.00166903]
[1739314240824,0.31949288,96179.0,96157.0,0.0796]
[1739314241006,0.155993,96158.0,96157.0,0.0796]
[1739314242669,0.155993,96158.0,96157.0,0.0836]
[1739314243070,0.16563298,96158.0,96157.0,0.0836]
[1739314244922,0.18593975,96158.0,96157.0,0.0836]
[1739314246174,0.19649402,96158.0,96157.0,0.0836]
[1739314247401,0.21781094,96158.0,96157.0,0.0836]
[1739314248802,0.19850417,96158.0,96157.0,0.0836]
[1739314250964,0.19850417,96158.0,96157.0,0.08382386]
[1739314255245,0.21783622,96158.0,96157.0,0.08382386]
[1739314258834,0.21783622,96158.0,96157.0,0.00422386]
[1739314259166,0.20431786,96158.0,96157.0,0.00422386]
[1739314259917,0.18498581,96158.0,96157.0,0.00422386]
[1739314260379,0.1843061,96158.0,96157.0,0.00422386]
[1739314262585,0.20364631,96158.0,96157.0,0.00422386]
[1739314274369,0.20387018,96158.0,96157.0,0.00422386]
[1739314275443,0.1942302,96158.0,96157.0,0.00422386]
[1739314276179,0.20391118,96158.0,96157.0,0.00422386]
[1739314281029,0.156004,96151.0,96150.0,0.0768]
[1739314282150,0.156004,96151.0,96150.0,0.0828]
[1739314282151,0.158004,96151.0,96150.0,0.0828]
[1739314282734,0.18702519,96151.0,96150.0,0.0828]
[1739314286493,0.18702519,96151.0,96150.0,0.0829066]
[1739314290346,0.16768498,96151.0,96150.0,0.0829066]
[1739314290516,0.18707923,96151.0,96150.0,0.0829066]
[1739314296502,0.03107523,96151.0,96150.0,0.0829066]
[1739314297045,0.18707923,96151.0,96150.0,0.0829066]
[1739314304931,0.03107523,96151.0,96150.0,0.0829066]
[1739314307613,0.18707923,96151.0,96150.0,0.0829066]
[1739314307955,0.03107523,96151.0,96150.0,0.0829066]
[1739314308292,0.33707923,96151.0,96150.0,0.0829066]
[1739314308465,0.36007923,96151.0,96150.0,0.0829066]
[1739314308693,0.46258288,96151.0,96150.0,0.0061066]
[1739314309468,0.12550365,96151.0,96150.0,0.0061066]
[1739314309631,0.28150765,96151.0,96150.0,0.0061066]
[1739314309976,0.28250765,96151.0,96150.0,0.0061066]
[1739314310268,0.28250765,96151.0,96150.0,0.0001066]
[1739314310451,0.28150765,96151.0,96150.0,0.0001066]
[1739314310654,0.28150765,96151.0,96150.0,0.0041066]
[1739314310835,0.28750765,96151.0,96150.0,0.0001066]
[1739314311261,0.28750765,96151.0,96150.0,0.0011066]
[1739314313600,0.28150765,96151.0,96150.0,0.0011066]
[1739314313747,0.29350765,96151.0,96150.0,0.0011066]
[1739314313950,0.29350765,96151.0,96150.0,0.0001066]
[1739314314371,0.29450765,96151.0,96150.0,0.0001066]
[1739314317300,0.3108054,96151.0,96150.0,0.0001066]
[1739314323460,0.30798842,96151.0,96150.0,0.0001066]
[1739314325957,0.32735157,96151.0,96150.0,0.0001066]
[1739314327234,0.30798842,96151.0,96150.0,0.0001066]
[1739314329626,0.32734865,96151.0,96150.0,0.0001066]
[1739314330334,0.59694865,96151.0,96150.0,0.0001066]
[1739314330460,0.5806509,96151.0,96150.0,0.0001066]
[1739314331018,0.56129067,96151.0,96150.0,0.0001066]
[1739314331363,0.54929067,96151.0,96150.0,0.0001066]
[1739314331699,0.56429067,96151.0,96150.0,0.0001066]
[1739314332123,0.54929067,96151.0,96150.0,0.0001066]
[1739314332474,0.156038,96130.0,96129.0,0.0818]
[1739314332813,0.25854165,96130.0,96129.0,0.0818]
[1739314333821,0.25858601,96130.0,96129.0,0.0818]
[1739314334815,0.26858601,96130.0,96129.0,0.0818]
[1739314335835,0.27826034,96130.0,96129.0,0.0818]
[1739314336743,0.29067749,96130.0,96129.0,0.0818]
[1739314338382,0.31367749,96130.0,96129.0,0.0818]
[1739314339711,0.33479037,96130.0,96129.0,0.0818]
[1739314344865,0.33094043,96130.0,96129.0,0.0818]
[1739314345137,0.32221106,96130.0,96129.0,0.0818]
[1739314345499,0.32221106,96130.0,96129.0,0.0819066]
[1739314346728,0.32214686,96130.0,96129.0,0.0819066]
[1739314353657,0.32314686,96130.0,96129.0,0.0819066]
[1739314353858,0.31314686,96130.0,96129.0,0.0819066]
[1739314354284,0.32414686,96130.0,96129.0,0.0819066]
[1739314359390,0.32437073,96130.0,96129.0,0.0819066]
[1739314361032,0.31922262,96130.0,96129.0,0.0819066]
[1739314361794,0.30892284,96130.0,96129.0,0.0819066]
[1739314362324,0.18097624,96130.0,96129.0,0.0819066]
[1739314363427,0.33701424,96130.0,96129.0,0.0819066]
[1739314364185,0.33686276,96130.0,96129.0,0.0819066]
[1739314394458,0.33686276,96130.0,96129.0,0.0001066]
[1739314398460,0.49686276,96130.0,96129.0,0.0001066]
[1739314399378,0.48586276,96130.0,96129.0,0.0001066]
[1739314399577,0.48486276,96130.0,96129.0,0.0001066]
[1739314399763,0.50186276,96130.0,96129.0,0.0001066]
[1739314400483,0.156056,96119.0,96118.0,0.07534484]
[1739314400707,0.28155965,96119.0,96118.0,0.07534484]
[1739314401292,0.30092735,96119.0,96118.0,0.07534484]
[1739314401667,0.30992735,96119.0,96118.0,0.07534484]
[1739314402280,0.30992735,96119.0,96118.0,0.12214484]
[1739314402281,0.19409803,96119.0,96118.0,0.12214484]
[1739314402498,0.03804203,96119.0,96118.0,0.12214484]
[1739314402704,0.19409803,96119.0,96118.0,0.12214484]
[1739314404510,0.33133383,96119.0,96118.0,0.12214484]
[1739314405464,0.33133383,96119.0,96118.0,0.12225144]
[1739314407973,0.33133383,96119.0,96118.0,0.0001066]
[1739314411257,0.49133383,96119.0,96118.0,0.0001066]
[1739314412265,0.48233383,96119.0,96118.0,0.0001066]
[1739314412490,0.156079,96105.0,96104.0,0.075]
[1739314412776,0.28158265,96105.0,96104.0,0.075]
[1739314413733,0.30095035,96105.0,96104.0,0.075]
[1739314414151,0.31062468,96105.0,96104.0,0.075]
[1739314414450,0.179089,96099.0,96098.0,0.047]
[1739314414663,0.28159265,96099.0,96098.0,0.047]
[1739314414799,0.28159265,96099.0,96098.0,0.122]
[1739314415522,0.29126698,96099.0,96098.0,0.122]
[1739314415868,0.29126698,96099.0,96098.0,0.12213346]
[1739314416020,0.31063468,96099.0,96098.0,0.12213346]
[1739314417052,0.32163468,96099.0,96098.0,0.12213346]
[1739314417253,0.32163468,96099.0,96098.0,0.12224006]
[1739314417653,0.31063468,96099.0,96098.0,0.12224006]
[1739314417873,0.32163468,96099.0,96098.0,0.12224006]
[1739314418300,0.31063468,96099.0,96098.0,0.12224006]
[1739314418482,0.31163468,96099.0,96098.0,0.12224006]
[1739314418703,0.32263468,96099.0,96098.0,0.12224006]
[1739314419004,0.32263468,96099.0,96098.0,0.07524006]
[1739314427580,0.32263468,96099.0,96098.0,0.00024006]
[1739314428566,0.47263468,96099.0,96098.0,0.00024006]
[1739314428938,0.21802833,96099.0,96098.0,0.00024006]
[1739314429138,0.1561,96092.0,96091.0,0.0002]
[1739314429350,0.25860365,96092.0,96091.0,0.0807335]
[1739314430488,0.26460365,96092.0,96091.0,0.0807335]
[1739314430640,0.26460365,96092.0,96091.0,0.0817335]
[1739314430835,0.27427798,96092.0,96091.0,0.0817335]
[1739314431229,0.156116,96082.0,96080.0,0.076]
[1739314431456,0.28161965,96082.0,96081.0,0.00035694]
[1739314432641,0.32284535,96082.0,96081.0,0.00035694]
[1739314433041,0.33584535,96082.0,96081.0,0.00035694]
[1739314433468,0.32284535,96082.0,96081.0,0.00035694]
[1739314433805,0.33684535,96082.0,96081.0,0.00035694]
[1739314433971,0.33784535,96082.0,96081.0,0.00035694]
[1739314434180,0.31752128,96082.0,96081.0,0.00035694]
[1739314434576,0.32152128,96082.0,96081.0,0.00035694]
[1739314435265,0.34232835,96082.0,96081.0,0.00035694]
[1739314436298,0.05422393,96082.0,96081.0,0.00035694]
[1739314436499,0.22433993,96082.0,96081.0,0.00035694]
[1739314436916,0.23201993,96082.0,96081.0,0.00035694]
[1739314437332,0.38201993,96082.0,96081.0,0.00035694]
[1739314442363,0.38201993,96082.0,96081.0,0.08155694]
[1739314442770,0.4013492,96082.0,96081.0,0.08155694]
[1739314445214,0.40083801,96082.0,96081.0,0.08155694]
[1739314446894,0.54353801,96082.0,96081.0,0.00035694]
[1739314447846,0.52553801,96082.0,96081.0,0.00035694]
[1739314448304,0.52820874,96082.0,96081.0,0.00035694]
[1739314448469,0.41850874,96082.0,96081.0,0.00035694]
[1739314448853,0.40350874,96082.0,96081.0,0.00035694]
[1739314449302,0.41850874,96082.0,96081.0,0.00035694]
[1739314449508,0.41850874,96082.0,96001.0,0.0001066]
[1739314449509,0.166246,96002.0,96001.0,0.0001066]
[1739314449681,0.01,95998.0,95988.0,0.0487]
[1739314449885,0.156258,95995.0,95988.0,0.0487]
[1739314450716,0.25876165,95995.0,95988.0,0.0487]
[1739314450920,0.25876165,95995.0,95994.0,0.00055056]
[1739314451331,0.42508782,95995.0,95994.0,0.00055056]
[1739314451557,0.43476215,95995.0,95994.0,0.00055056]
[1739314451794,0.4539745,95995.0,95994.0,0.00055056]
[1739314451987,0.46579792,95995.0,95994.0,0.00055056]
[1739314452431,0.4571557,95995.0,95994.0,0.00055056]
[1739314452593,0.4591557,95995.0,95994.0,0.00055056]
[1739314452793,0.59726795,95995.0,95994.0,0.00055056]
[1739314453222,0.3447643,95995.0,95994.0,0.00055056]
[1739314453418,0.16872272,95995.0,95994.0,0.00055056]
[1739314453623,0.16772272,95995.0,95994.0,0.00055056]
[1739314454007,0.16872272,95995.0,95994.0,0.00055056]
[1739314454208,0.17003877,95995.0,95994.0,0.00055056]
[1739314454465,0.16021535,95995.0,95994.0,0.00055056]
[1739314454817,0.14821535,95995.0,95994.0,0.00055056]
[1739314455023,0.15721535,95995.0,95994.0,0.00055056]
[1739314455682,0.15521535,95995.0,95994.0,0.00055056]
[1739314455859,0.30521535,95995.0,95994.0,0.00055056]
[1739314456070,0.427719,95995.0,95994.0,0.00055056]
[1739314456268,0.541386,95995.0,95994.0,0.00055056]
[1739314456465,0.564386,95995.0,95994.0,5.6e-07]
[1739314456639,0.48408443,95995.0,95994.0,5.6e-07]
[1739314456824,0.02,95985.0,95965.0,0.0803]
[1739314457025,0.45177765,95985.0,95984.0,0.0002403]
[1739314457225,0.306295,95972.0,95965.0,0.0803]
[1739314457458,0.40879865,95972.0,95965.0,0.0803]
[1739314457633,0.52157892,95972.0,95965.0,0.0803]
[1739314458029,0.55394435,95972.0,95965.0,0.0803]
[1739314458742,0.5755958,95972.0,95965.0,0.0803]
[1739314459343,0.60461993,95972.0,95965.0,0.0803]
[1739314462569,0.62369244,95972.0,95965.0,0.0803]
[1739314462846,0.156305,95966.0,95965.0,0.0803]
[1739314463210,0.15631,95963.0,95931.0,0.0002]
[1739314463408,0.15636,95932.0,95931.0,0.00064342]
[1739314463818,0.10041761,95932.0,95931.0,0.00064342]
[1739314464014,0.13278304,95932.0,95931.0,0.00064342]
[1739314464344,0.10041761,95932.0,95931.0,0.00064342]
[1739314464574,0.10041761,95932.0,95931.0,0.04924342]
[1739314464783,0.05041761,95932.0,95931.0,0.04924342]
[1739314464993,0.02066306,95954.0,95931.0,0.15174707]
[1739314465196,0.02066306,95954.0,95932.0,0.10250365]
[1739314465315,0.208428,95957.0,95932.0,0.10250365]
[1739314465530,0.16600233,95952.0,95932.0,0.08850365]
[1739314465739,0.00967433,95952.0,95933.0,0.156359]
[1739314465941,0.00967433,95952.0,95934.0,0.10250365]
[1739314466178,0.00967433,95952.0,95934.0,0.09950365]
[1739314466361,0.00967433,95952.0,95935.0,0.0807]
[1739314466567,0.00967433,95952.0,95935.0,0.18320365]
[1739314466753,0.01067433,95952.0,95935.0,0.18320365]
[1739314466949,0.16600233,95952.0,95935.0,0.18320365]
[1739314467149,0.15633,95951.0,95935.0,0.18320365]
[1739314467994,0.156329,95951.0,95935.0,0.18320365]
[1739314468177,0.01905511,95950.0,95935.0,0.18320365]
[1739314468397,0.01905511,95950.0,95935.0,0.18420365]
[1739314468809,0.01905511,95950.0,95935.0,0.001]
[1739314468810,0.156354,95936.0,95935.0,0.001]
[1739314469017,0.15636,95932.0,95931.0,0.00075012]
[1739314469816,0.17541511,95932.0,95931.0,0.00075012]
[1739314470124,0.23807964,95932.0,95931.0,0.00075012]
[1739314470834,0.20778054,95932.0,95931.0,0.00075012]
[1739314471161,0.25575397,95932.0,95931.0,0.00075012]
[1739314472274,0.156367,95928.0,95927.0,0.01021122]
[1739314472766,0.21903153,95928.0,95927.0,0.01021122]
[1739314473614,0.21903153,95928.0,95879.0,0.01181407]
[1739314473615,0.208515,95917.0,95881.0,0.0807]
[1739314473748,0.208498,95924.0,95881.0,0.0807]
[1739314473749,0.15641,95902.0,95881.0,0.0807]
[1739314473950,0.03236543,95901.0,95881.0,0.0807]
[1739314474353,0.156414,95900.0,95881.0,0.0807]
[1739314474757,0.06132629,95899.0,95881.0,0.0807]
[1739314475386,0.06176924,95899.0,95881.0,0.0807]
[1739314475701,0.06176924,95899.0,95898.0,0.0021066]
[1739314475848,0.06176924,95899.0,95898.0,0.0001066]
[1739314476049,0.06939903,95899.0,95898.0,0.0001066]
[1739314476251,0.11997431,95899.0,95898.0,0.0021066]
[1739314476530,0.11997431,95899.0,95898.0,0.0001066]
[1739314476531,0.11897431,95899.0,95898.0,0.0001066]
[1739314476957,0.11897431,95899.0,95898.0,0.0021066]
[1739314477290,0.11897431,95899.0,95881.0,0.05949786]
[1739314477291,0.156437,95885.0,95881.0,0.05949786]
[1739314477483,0.06132629,95884.0,95872.0,0.00169052]
[1739314477707,0.03102719,95884.0,95851.0,0.0002]
[1739314477925,0.03102719,95883.0,95852.0,0.10250365]
[1739314478078,0.156449,95878.0,95852.0,0.10250365]
[1739314478280,0.156452,95876.0,95852.0,0.10250365]
[1739314478479,0.06132629,95875.0,95852.0,0.10250365]
[1739314478680,0.06132629,95875.0,95853.0,0.023]
[1739314478963,0.06132629,95875.0,95855.0,0.023]
[1739314479170,0.00762979,95875.0,95860.0,0.14620761]
[1739314479362,0.04957528,95874.0,95872.0,0.156457]
[1739314479655,0.04957528,95874.0,95873.0,0.10250365]
[1739314480000,0.07449053,95874.0,95873.0,0.10250365]
[1739314480582,0.07449053,95874.0,95873.0,0.18220365]
[1739314480760,0.07549053,95874.0,95873.0,0.22790365]
[1739314480957,0.02591525,95874.0,95873.0,0.1254]
[1739314481155,0.02491525,95874.0,95873.0,0.1254]
[1739314481559,0.02591525,95874.0,95873.0,0.1254]
[1739314482677,0.05621435,95874.0,95873.0,0.1254]
[1739314483465,0.05521435,95874.0,95873.0,0.1254]
[1739314483918,0.05621435,95874.0,95873.0,0.1254]
[1739314484170,0.02591525,95874.0,95873.0,0.1254]
[1739314484342,0.02491525,95874.0,95873.0,0.1254]
[1739314484773,0.05721435,95874.0,95873.0,0.1254]
[1739314484951,0.02691525,95874.0,95873.0,0.1254]
[1739314485094,0.02491525,95874.0,95873.0,0.1254]
[1739314485497,0.02591525,95874.0,95873.0,0.38435965]
[1739314486735,0.02591525,95874.0,95873.0,0.55735965]
[1739314486736,0.02491525,95874.0,95873.0,0.55735965]
[1739314486973,0.00766265,95884.0,95873.0,0.40090365]
[1739314487145,0.00766265,95884.0,95883.0,0.30644]
[1739314487395,0.01598563,95887.0,95855.0,0.0797]
[1739314487607,0.156483,95857.0,95855.0,0.0797]
[1739314487816,0.02038124,95884.0,95855.0,0.0797]
[1739314488196,0.15644,95883.0,95856.0,0.10250365]
[1739314488427,0.156459,95872.0,95856.0,0.25898665]
[1739314488725,0.156459,95872.0,95857.0,0.156482]
[1739314488934,0.15690168,95872.0,95859.0,0.156478]
[1739314489138,0.00044268,95872.0,95860.0,0.24871126]
[1739314489326,0.00044268,95872.0,95865.0,0.156469]
[1739314489535,0.00044268,95872.0,95860.0,0.10250365]
[1739314489740,0.00044268,95872.0,95871.0,0.15646]